Cogmind - Beta 17.1 @@@ ROGUE MODE // 2026.09.05 @ 22:40:53 Player: SnailSD Result: Destroyed by G-50 Soldier with Heavy Laser Performance ------------- Evolutions (5) 2500 Regions Visited (19) 3800 Robots Destroyed (146) 730 Value Destroyed (5152) 5152 Prototype IDs (12) 240 Alien Tech Used (0) 0 Bonus (4390) 4390 TOTAL SCORE: 16812 Bonus ------- Follower Combat Kills 1690 Entered DSFs 500 Met Imprinter 300 Was Imprinted 300 Met Zhirov 300 MAIN.C Attacked Proxy Base 500 Met R17 at Cetus 500 Read Decrypted Archives 300 Cogmind --------- Core Integrity 0/1000 Matter 237/400 Energy 100/100 System Corruption 0% Temperature Danger (448) Movement Core (850) Ox16 Location -5/Hub_04(d) Parts ------- > --- POWER (1) -------- Zionite Heavy DM Reactor > --- PROPULSION (4) --- (None) > --- UTILITY (8) ------ Large Storage Unit Medium Matter Pod Advanced Targeting Computer Improved Hacking Suite Experimental Hacking Suite > --- WEAPON (4) ------- Gatling Laser Heavy Flail > --- INVENTORY (15) --- Improved Sensor Array Improved Transmission Jammer EM Shield High-powered Tractor Beam Improved Field Recycling Unit (0) Peak State ------------ > --- POWER ------------ Quantum Reactor > --- PROPULSION ------- Centrium Heavy Treads Centrium Heavy Treads > --- UTILITY ---------- Large Storage Unit Advanced Targeting Computer Centrium Medium Armor Plating Improved Hacking Suite Improved Hacking Suite Improved Hacking Suite Improved Hacking Suite Experimental Hacking Suite > --- WEAPON ----------- KE Penetrator Advanced KE Penetrator Advanced KE Penetrator Advanced KE Penetrator > --- INVENTORY -------- Zionite Heavy DM Reactor Carbon-fiber Leg Carbon-fiber Leg Carbon-fiber Leg Carbon-fiber Leg Medium Matter Pod Improved Sensor Array Weapon Cycler Improved Transmission Jammer Centrium Medium Armor Plating EM Shield Point Defense System High-powered Tractor Beam Improved Field Recycling Unit Heavy Flail [Rating: 122] Favorites ----------- Power Light Nuclear Core Engine Light Angular Momentum Engine Power Core Light Nuclear Core Reactor Quantum Reactor Propulsion Carbon-fiber Leg Treads Light Treads Leg Carbon-fiber Leg Utility Improved Hacking Suite Device Weapon Cycler Storage Large Storage Unit Processor Targeting Computer Hackware Improved Hacking Suite Protection Improved Medium Armor Plating Weapon Gauss Rifle Energy Gun Small Laser Energy Cannon Advanced Beam Cannon Ballistic Gun Gauss Rifle Launcher Heavy Missile Launcher Special Weapon Mining Laser Impact Weapon Heavy Flail Build | -11 -10 -10 -9 -9 -9 -8 -8 -7 -7 -7 -7 -6 -6 -6 -5 -5 -5 -5 -5 ------- Run | Yrd Mat Min Mat Min Exi Min Mat Fac Low Low Zio Pro Fac DSF Fac Ext Cet Arc Hub Slots Evolved 10 | . . . 2 . . . 2 2 . . . . 2 . 2 . . . . Power . | . . . . . . . . . . . . . . . . . . . . Propulsion 2 | . . . . . . . 1 1 . . . . . . . . . . . Utility 6 | . . . 1 . . . . 1 . . . . 2 . 2 . . . . Weapon 2 | . . . 1 . . . 1 . . . . . . . . . . . . Parts Attached 152 | 10 3 . 22 . . 2 11 13 5 1 1 27 1 6 13 23 9 . 5 Power 22 | 1 1 . 3 . . 1 . 2 . 1 . 4 . 1 2 4 2 . . Engine 16 | 1 1 . 3 . . 1 . 1 . . . 4 . 1 2 2 . . . Core 2 | . . . . . . . . 1 . 1 . . . . . . . . . Reactor 4 | . . . . . . . . . . . . . . . . 2 2 . . Propulsion 45 | 2 . . 4 . . 1 1 3 1 . . 15 . 2 3 10 2 . 1 Treads 9 | 2 . . . . . . . . . . . 5 . . . . 2 . . Leg 36 | . . . 4 . . 1 1 3 1 . . 10 . 2 3 10 . . 1 Wheel . | . . . . . . . . . . . . . . . . . . . . Hover . | . . . . . . . . . . . . . . . . . . . . Flight . | . . . . . . . . . . . . . . . . . . . . Utility 38 | 4 2 . 4 . . . 3 5 1 . 1 2 1 1 4 5 2 . 3 Device 12 | 2 1 . 1 . . . 2 1 . . . 1 . . 1 1 1 . 1 Storage 4 | 2 1 . . . . . . . . . . . . . . . . . 1 Processor 5 | . . . 2 . . . . . . . . 1 . . . 2 . . . Hackware 9 | . . . . . . . . 3 . . 1 . 1 1 3 . . . . Protection 8 | . . . 1 . . . 1 1 1 . . . . . . 2 1 . 1 Artifact . | . . . . . . . . . . . . . . . . . . . . Weapon 47 | 3 . . 11 . . . 7 3 3 . . 6 . 2 4 4 3 . 1 Energy Gun 6 | 1 . . 2 . . . . . . . . 2 . . . . . . 1 Energy Cannon 1 | . . . 1 . . . . . . . . . . . . . . . . Ballistic Gun 36 | 2 . . 7 . . . 7 1 2 . . 4 . 2 4 4 3 . . Ballistic Cannon . | . . . . . . . . . . . . . . . . . . . . Launcher 2 | . . . . . . . . 1 1 . . . . . . . . . . Special Weapon 1 | . . . 1 . . . . . . . . . . . . . . . . Impact Weapon 1 | . . . . . . . . 1 . . . . . . . . . . . Slashing Weapon . | . . . . . . . . . . . . . . . . . . . . Piercing Weapon . | . . . . . . . . . . . . . . . . . . . . Special Melee Weapon . | . . . . . . . . . . . . . . . . . . . . Unidentified Prototypes 9 | . . . 2 . . . . . . . 1 . . . . 3 3 . . Parts Lost 74 | . 1 . 6 . . 2 1 4 4 . . 17 . . 8 11 3 2 15 Power 13 | . 1 . 3 . . 1 . 2 . . . 3 . . 1 1 . . 1 Propulsion 23 | . . . 2 . . 1 . 2 1 . . 4 . . 4 3 . . 6 Utility 10 | . . . 1 . . . . . . . . 2 . . . 1 . . 6 Weapon 28 | . . . . . . . 1 . 3 . . 8 . . 3 6 3 2 2 Highest Loss Streak 15 | . 1 . 3 . . 2 1 2 4 . . 7 . . 8 5 3 2 15 To Critical Strikes 2 | . . . . . . . . . . . . . . . . 1 1 . . Average Backups 13 | 5 11 14 14 15 15 14 14 14 14 14 14 13 10 13 12 13 15 15 11 Power 1 | . . . 1 1 1 1 1 . 1 1 2 1 2 1 1 1 1 1 . Propulsion 1 | 1 . . 1 . . . 1 2 . . . 1 1 1 1 2 4 4 3 Utility 7 | 1 6 9 6 7 7 6 6 6 9 10 9 7 5 8 6 7 9 9 7 Weapon 3 | 1 3 4 5 7 7 7 5 5 3 3 2 2 2 2 2 1 1 1 . Tool/Special . | . . . . . . . . . . . . . . . . . . . . Unused Backups 34 | . 4 2 7 . . 2 2 4 1 . 1 1 . 1 1 4 1 . 3 Power 4 | . . 1 . . . . . . . . . . . 1 1 1 . . . Propulsion 9 | . 2 . . . . . . 3 . . . . . . . 3 1 . . Utility 14 | . 2 1 2 . . 2 2 . 1 . . 1 . . . . . . 3 Weapon 7 | . . . 5 . . . . 1 . . 1 . . . . . . . . Tool/Special . | . . . . . . . . . . . . . . . . . . . . Average Slot Usage (%) 96 | . 99 100 97 100 100 96 98 98 97 100 99 96 84 89 98 95 84 82 68 Engine 5 | . 13 14 10 11 11 9 9 5 . . . 6 6 6 4 4 . . . Core 1 | . . . . . . . . 1 7 7 7 . . . . . . . . Treads 3 | . 28 28 . . . . . . . . . 8 . . . . 3 11 6 Leg 21 | . . . 21 22 22 20 27 29 28 30 30 20 26 26 22 22 15 . 4 Device 5 | . 13 14 3 . . . 7 11 12 7 7 5 5 6 4 . . . 3 Storage 7 | . 14 14 11 11 11 11 9 7 7 7 7 7 6 6 5 5 5 5 6 Processor 4 | . . . 15 22 22 22 10 . . . . 1 6 6 . 4 5 5 5 Hackware 14 | . . . . . . . . 7 7 7 13 15 19 19 34 32 29 29 19 Protection 1 | . . . 3 . . . . 2 2 7 . . . . . 2 4 5 3 Energy Gun 2 | . 14 14 3 . . . . . . . . 4 6 6 2 . . . . Ballistic Gun 23 | . 14 14 28 33 33 33 33 29 28 30 30 22 6 9 19 19 12 17 6 Peak Build Rating 122 | 9 8 8 20 20 20 22 40 46 46 44 49 54 51 59 85 87 122 122 110 Average Rating 47 | 7 7 8 18 20 20 20 28 41 44 44 47 49 50 54 74 81 91 114 81 On Entrance 43 | . 8 8 8 20 20 20 22 38 45 44 44 49 45 51 59 81 87 122 106 Avg Prop Armor Cover (%) 4 | . . . . . . . . 4 . . . 4 . . . . . . . Naked Turns . | . . . . . . . . . . . . . . . . . . . . Heaviest Build 70 | 14 29 27 36 34 34 38 51 52 46 46 46 48 40 49 49 64 70 70 58 Greatest Support 160 | 40 40 40 40 34 34 34 47 58 58 58 58 83 70 70 80 80 160 160 160 Greatest Overweight (x) 14 | . . . 1 . . 2 1 1 1 . . 14 . . 1 2 1 . 2 Average Overweight (x) . | . . . . . . . . . . . . . . . . . . . . Largest Inventory Capacity 15 | 8 15 15 15 15 15 15 15 15 15 15 15 15 15 15 15 15 15 15 15 Average Capacity 14 | 7 12 15 15 15 15 15 15 15 15 15 15 15 15 15 15 15 15 15 15 Most Carried 15 | 8 15 15 15 15 15 15 15 15 15 15 15 15 12 15 15 15 15 15 15 Average Carried 13 | 5 11 14 14 15 15 14 14 14 14 14 14 14 11 14 13 14 14 15 11 Final Capacity 15 | 8 15 15 15 15 15 15 15 15 15 15 15 15 15 15 15 15 15 15 15 Final Carried 15 | 8 14 15 15 15 15 15 15 15 14 15 15 13 11 15 13 15 15 15 5 Class Distribution -------------------- 21% | Scavenger-Gunner 14% | Gunner 10% | Wizard-Gunner 10% | Scavenger-Tank 9% | Mutant 6% | Hacker-Gunner 5% | Wizard-Skirmisher 5% | Wizard-Mutant 4% | Scavenger-Skirmisher Dominant Class ---------------- Mutant | -10/Materials Mutant | -10/Mines Gunner | -9/Materials Gunner | -9/Mines Gunner | -9/Exiles Gunner | -8/Mines Gunner | -8/Materials Scavenger-Gunner | -7/Factory Scavenger-Gunner | -7/Lower Caves Scavenger-Tank | -7/Lower Caves Scavenger-Gunner | -7/Zion Scavenger-Skirmisher | -6/Proximity Caves Hacker-Mutant | -6/Factory Hacker-Mutant | -6/DSF Wizard-Skirmisher | -5/Factory Wizard-Gunner | -5/Extension Wizard-Mutant | -5/Cetus Wizard-Tank | -5/Archives Hacker-Mutant | -5/Hub_04(d) Resources | -11 -10 -10 -9 -9 -9 -8 -8 -7 -7 -7 -7 -6 -6 -6 -5 -5 -5 -5 -5 ----------- Run | Yrd Mat Min Mat Min Exi Min Mat Fac Low Low Zio Pro Fac DSF Fac Ext Cet Arc Hub Matter Collected 4956 | 413 115 18 562 190 . 118 153 482 316 125 13 737 . 90 292 1069 199 64 . Remotely . | . . . . . . . . . . . . . . . . . . . . Salvage Created 6243 | 265 209 116 931 164 . 235 173 660 416 37 . 786 . . 153 1681 . 178 239 Parts 337 | 23 16 6 65 10 . 7 10 43 17 4 . 32 . . 11 71 . 7 15 Haulers Intercepted 3 | . 1 . 2 . . . . . . . . . . . . . . . . Recyclers Shooed 3 | . . . . 1 . . 1 . . . . . . . . 1 . . . Parts Field Recycled . | . . . . . . . . . . . . . . . . . . . . Retrieved Matter . | . . . . . . . . . . . . . . . . . . . . Parts Self-Destructed 78 | . . . . . . . . . 16 4 . 58 . . . . . . . Prevented 39 | . . . . . . . . . . . . 39 . . . . . . . Parts Restored . | . . . . . . . . . . . . . . . . . . . . Kills | -11 -10 -10 -9 -9 -9 -8 -8 -7 -7 -7 -7 -6 -6 -6 -5 -5 -5 -5 -5 ------- Run | Yrd Mat Min Mat Min Exi Min Mat Fac Low Low Zio Pro Fac DSF Fac Ext Cet Arc Hub Combat Hostiles Destroyed 112 | . 3 3 17 3 . 3 3 14 16 1 . 20 . . 2 21 . 3 3 Guns 92 | . 3 3 16 3 . 3 3 11 6 1 . 14 . . 2 21 . 3 3 AOE 20 | . . . 1 . . . . 3 10 . . 6 . . . . . . . Classes Destroyed 18 | 3 4 1 2 . . . 2 1 1 . . 1 . . . 1 . . 2 Worker 8 | 2 . . 4 1 . . . . . . . . . . 1 . . . . Builder 5 | . 1 . 1 1 . . . 1 . . . . . . . 1 . . . Tunneler 6 | 6 . . . . . . . . . . . . . . . . . . . Hauler 3 | . 1 . 2 . . . . . . . . . . . . . . . . Recycler 6 | 1 . 1 . 1 . 1 . . . . . . . . . 2 . . . Operator 3 | . . . . . . . 1 1 . . . . . . . 1 . . . Watcher 3 | . 1 . . . . . . . . . . . . . . 2 . . . Swarmer 29 | . . 3 3 3 . . . 3 8 . . 5 . . . 4 . . . Grunt 48 | . 3 . 7 . . 3 2 5 1 . . 12 . . . 12 . 3 . Brawler 4 | . . . 1 . . . . 1 2 . . . . . . . . . . Duelist 2 | . . . . . . . . . 2 . . . . . . . . . . Protector 1 | . . . . . . . . . . . . 1 . . . . . . . Sentry 16 | . . . 6 . . . . 3 2 . . 1 . . 1 3 . . . Specialist 2 | . . . . . . . . . . . . . . . . . . . 2 Hunter 3 | . . . . . . . 1 1 . . . . . . 1 . . . . Programmer 4 | . . . . . . . . 1 1 1 . 1 . . . . . . . Heavy 1 | . . . . . . . . . . . . . . . . . . . 1 Behemoth 2 | . . . . . . . . . . . . . . . . 2 . . . Z-Courier 1 | . . . . . . . . . . . . . . . . 1 . . . Best Kill Streak 8 | 2 2 4 7 3 . 4 2 5 7 1 . 7 . . 1 8 . 3 3 Combat Bots Only 7 | . 2 3 4 3 . 3 2 4 7 1 . 7 . . 1 7 . 3 3 Max Kills in Single Turn 6 | 2 1 1 2 1 . 1 1 2 2 1 . 6 . . 1 2 . 1 1 Gunslinging 1 | . . . 1 . . . . 1 . . . . . . . 1 . . . Exploded 6 | . . . 1 . . . . 1 2 . . 6 . . . . . . . Melee . | . . . . . . . . . . . . . . . . . . . . Uniques/NPCs Destroyed . | . . . . . . . . . . . . . . . . . . . . Combat | -11 -10 -10 -9 -9 -9 -8 -8 -7 -7 -7 -7 -6 -6 -6 -5 -5 -5 -5 -5 -------- Run | Yrd Mat Min Mat Min Exi Min Mat Fac Low Low Zio Pro Fac DSF Fac Ext Cet Arc Hub Hostile Shots Fired 1002 | . 29 11 126 10 . 12 19 135 81 6 . 180 . 9 44 113 14 15 198 Missed 328 | . 10 3 40 2 . 3 7 52 35 3 . 66 . 5 7 41 5 6 43 Hits 674 | . 19 8 86 8 . 9 12 83 46 3 . 114 . 4 37 72 9 9 155 Melee 4 | . . . . . . . . . 4 . . . . . . . . . . Projectile 670 | . 19 8 86 8 . 9 12 83 42 3 . 114 . 4 37 72 9 9 155 AOE 1 | . . . . . . . . . . . . . . 1 . . . . . Critical Strikes 15 | . . . . . . . . . 1 . . 3 . . . 4 2 1 4 Damage Taken 13206 | . 412 64 1088 61 . 161 175 933 853 45 . 1936 . 93 842 1623 304 1638 2978 Core 1636 | . 78 6 69 . . . 24 168 75 15 . 188 . . 69 204 28 417 295 Absorbed by Shields . | . . . . . . . . . . . . . . . . . . . . Reduced by Siege Mode 209 | . . . . . . . . . . . . . . . . . . . 209 Regen/Repaired (Parts) 172 | . . . . . . . . 94 . . . 78 . . . . . . . Core Remaining (%) 79 | 100 . 66 . . . 82 95 . . . . 36 . 100 . . . . . Volleys Fired 348 | 31 27 6 50 10 . 12 11 28 21 7 . 38 . . 14 65 4 4 20 Largest 4 | 2 2 2 3 3 . 3 4 4 4 4 . 4 . . 4 4 4 4 2 Hottest 183 | 60 60 60 110 69 . 69 169 112 112 103 . 183 . . 137 132 124 138 80 Shots Fired 1005 | 61 53 12 145 30 . 36 44 97 55 28 . 119 . . 46 216 14 16 33 Gun 986 | 61 53 12 144 30 . 36 43 92 46 28 . 116 . . 46 216 14 16 33 Cannon . | . . . . . . . . . . . . . . . . . . . . Launcher 17 | . . . . . . . . 5 9 . . 3 . . . . . . . Special 2 | . . . 1 . . . 1 . . . . . . . . . . . . Kinetic 886 | 31 27 6 121 30 . 36 43 92 46 28 . 105 . . 43 216 14 16 32 Thermal 90 | 30 26 6 12 . . . 1 . . . . 11 . . 3 . . . 1 Explosive 17 | . . . . . . . . 5 9 . . 3 . . . . . . . Electromagnetic 12 | . . . 12 . . . . . . . . . . . . . . . . Robot Hit Streak 24 | 9 12 4 18 16 . 18 5 24 16 3 . 6 . . 12 17 4 5 6 Robot Miss Streak 6 | 3 3 2 6 3 . 3 3 2 4 5 . 4 . . 2 4 3 2 1 Penetration Max 1 | . . . . . . . . . . . . . . . . 1 1 1 1 Secondary Targets 22 | . 1 1 7 1 . . 1 3 . . . 2 . . . 6 . . . Max Gunslinging Chain 1 | . 1 1 1 1 . . 1 1 . . . 1 . . . 1 . . . Shots Hit Robots 619 | 38 30 6 95 23 . 19 22 65 25 8 . 75 . . 28 136 8 12 29 Core Hits 297 | 10 11 5 37 8 . 10 10 33 26 2 . 53 . . 10 65 1 7 9 Critical Kills 11 | . . . 1 . . . . 1 2 1 . 2 . . . 3 . 1 . Critical Parts Destroyed 11 | . . . . . . . . 1 . . . 1 . . 1 5 . 3 . Critical Strikes 23 | . . . 1 . . . . 2 2 1 . 3 . . 1 9 . 4 . Destroy 23 | . . . 1 . . . . 2 2 1 . 3 . . 1 9 . 4 . Melee Attacks 6 | . . . . . . . . 1 . . . . . . . . . . 5 Impact 6 | . . . . . . . . 1 . . . . . . . . . . 5 Slashing . | . . . . . . . . . . . . . . . . . . . . Piercing . | . . . . . . . . . . . . . . . . . . . . Sneak Attacks . | . . . . . . . . . . . . . . . . . . . . Combat Hostiles . | . . . . . . . . . . . . . . . . . . . . Follow-up Attacks . | . . . . . . . . . . . . . . . . . . . . Damage Inflicted 13729 | 452 342 98 1407 336 . 299 316 1397 1499 152 . 2094 . . 404 3375 249 414 895 Guns 11649 | 452 340 98 1378 336 . 299 316 1200 457 152 . 1362 . . 404 3375 249 414 817 Cannons . | . . . . . . . . . . . . . . . . . . . . Explosions 1996 | . . . 25 . . . . 197 1042 . . 732 . . . . . . . Melee 78 | . . . . . . . . . . . . . . . . . . . 78 Ramming 6 | . 2 . 4 . . . . . . . . . . . . . . . . Kinetic 10877 | 265 141 42 1175 336 . 299 316 1200 457 152 . 1274 . . 386 3375 249 414 796 Thermal 672 | 187 199 56 103 . . . . . . . . 88 . . 18 . . . 21 Explosive 1971 | . . . . . . . . 197 1042 . . 732 . . . . . . . Electromagnetic 125 | . . . 125 . . . . . . . . . . . . . . . . Impact 78 | . . . . . . . . . . . . . . . . . . . 78 Slashing . | . . . . . . . . . . . . . . . . . . . . Piercing . | . . . . . . . . . . . . . . . . . . . . Highest Corruption 1 | . 1 1 . . . . . . 1 1 1 . . . . . . . . Average Corruption 1 | . 1 1 . . . . . . 1 1 1 . . . . . . . . Corruption Purged . | . . . . . . . . . . . . . . . . . . . . Corruption Blocked . | . . . . . . . . . . . . . . . . . . . . Effects 13 | . 3 . . . . . . . 5 5 . . . . . . . . . Message Errors 5 | . 1 . . . . . . . 2 2 . . . . . . . . . Matter Fused 2 | . 1 . . . . . . . . 1 . . . . . . . . . Energy Discharges 3 | . 1 . . . . . . . 1 1 . . . . . . . . . Data Loss (minor) 1 | . . . . . . . . . . 1 . . . . . . . . . Alerts 1 | . . . . . . . . . 1 . . . . . . . . . . Weapon Failures 1 | . . . . . . . . . 1 . . . . . . . . . . Overload Shots . | . . . . . . . . . . . . . . . . . . . . Overflow Damage 94 | . . . . . . . . 14 61 . . 16 . . . . . . 3 Projectiles . | . . . . . . . . . . . . . . . . . . . . Explosions 91 | . . . . . . . . 14 61 . . 16 . . . . . . . Melee 3 | . . . . . . . . . . . . . . . . . . . 3 Knockbacks 1 | . . . . . . . . . . . . . . . . . . . 1 Impact 1 | . . . . . . . . . . . . . . . . . . . 1 Kinetic . | . . . . . . . . . . . . . . . . . . . . Secondary . | . . . . . . . . . . . . . . . . . . . . Self-Inflicted Damage 464 | . 99 . . . . . . 137 120 . . 108 . . . . . . . Shots 9 | . 1 . . . . . . 3 3 . . 2 . . . . . . . Rammed 1 | . 1 . . . . . . . . . . . . . . . . . . Targets Rammed 2 | . 1 . 1 . . . . . . . . . . . . . . . . Kicked 1 | . . . 1 . . . . . . . . . . . . . . . . Crushed . | . . . . . . . . . . . . . . . . . . . . Highest Temperature 457 | . 42 . 457 9 . 16 63 289 144 112 . 323 . . 45 246 314 169 439 Average Temperature 91 | . 20 . 90 4 . 7 22 101 53 54 . 105 . . 15 72 162 85 235 Received Heat Transfer 3072 | . 114 . 372 . . 81 45 240 72 . . 537 . 27 72 414 . 18 1080 Effects 13 | . . . 5 . . . . . . . . . . . . . 2 . 6 Shutdowns 2 | . . . 2 . . . . . . . . . . . . . . . . Energy Bleed 5 | . . . 2 . . . . . . . . . . . . . 1 . 2 Interference 4 | . . . . . . . . . . . . . . . . . . . 4 Short Circuit 1 | . . . 1 . . . . . . . . . . . . . . . . Damage (minor) 1 | . . . . . . . . . . . . . . . . . 1 . . Siege Activations 1 | . . . . . . . . . . . . . . . . . . . 1 Total Turns 41 | . . . . . . . . . . . . . . . . . . . 41 Longest Duration 41 | . . . . . . . . . . . . . . . . . . . 41 Martial Activations . | . . . . . . . . . . . . . . . . . . . . Shielding Activations . | . . . . . . . . . . . . . . . . . . . . Robots Disrupted . | . . . . . . . . . . . . . . . . . . . . Combat Hostiles . | . . . . . . . . . . . . . . . . . . . . Robots Corrupted . | . . . . . . . . . . . . . . . . . . . . Combat Hostiles . | . . . . . . . . . . . . . . . . . . . . Parts Fried 1 | . . . 1 . . . . . . . . . . . . . . . . Impact Corruptions 1 | . . . . . . . . . . . . . . . . . . . 1 Robots Melted . | . . . . . . . . . . . . . . . . . . . . Combat Hostiles . | . . . . . . . . . . . . . . . . . . . . Parts Melted . | . . . . . . . . . . . . . . . . . . . . Heat Transferred 1497 | 425 450 125 225 . . . . . . . . 185 . . 37 . . . 50 Parts Sabotaged . | . . . . . . . . . . . . . . . . . . . . Parts Stolen . | . . . . . . . . . . . . . . . . . . . . Parts Stripped . | . . . . . . . . . . . . . . . . . . . . Power Chain Reactions 1 | . . . 1 . . . . . . . . . . . . . . . . Alert | -11 -10 -10 -9 -9 -9 -8 -8 -7 -7 -7 -7 -6 -6 -6 -5 -5 -5 -5 -5 ------- Run | Yrd Mat Min Mat Min Exi Min Mat Fac Low Low Zio Pro Fac DSF Fac Ext Cet Arc Hub Maximum Alert Level 1 | . . . . . . . . . . . . . . . . 1 1 1 . Low Security (%) 96 | 100 100 100 100 100 . 100 100 100 . . . . 100 100 100 85 94 97 100 Level 1 3 | . . . . . . . . . . . . . . . . 14 5 2 . Level 2 . | . . . . . . . . . . . . . . . . . . . . Level 3 . | . . . . . . . . . . . . . . . . . . . . Level 4 . | . . . . . . . . . . . . . . . . . . . . Level 5 . | . . . . . . . . . . . . . . . . . . . . High Security . | . . . . . . . . . . . . . . . . . . . . Max Security . | . . . . . . . . . . . . . . . . . . . . Peak Influence 242 | 10 53 90 189 131 . 45 40 189 . . . . 74 45 30 242 211 218 50 Initial 115 | . . 10 23 61 . . . . . . . . 74 30 23 . 115 25 37 Average 65 | 1 11 70 85 51 . 12 7 64 . . . . 62 42 3 144 125 96 15 Influence Increases 4337 | 45 156 90 536 85 . 75 86 457 353 34 . 787 . 15 65 880 324 265 84 Destroy 0b10 Robot/C 2840 | . 60 60 340 60 . 60 60 280 320 20 . 580 . . 40 560 160 180 60 Destroy 0b10 Robot/NC 195 | 45 15 5 35 15 . 5 5 10 . . . 10 . . 5 30 10 5 . Destroy Leader 382 | . 24 10 104 10 . 10 20 70 30 10 . 10 . . 20 44 . . 20 Allied During Kill 411 | . . . . . . . . . 3 4 . 142 . . . 104 124 34 . Successful Hack 77 | . 20 . 7 . . . . 50 . . . . . . . . . . . Disable Machine 75 | . 15 . 15 . . . . 15 . . . . . . . . . 30 . Destroy Structure 162 | . 22 . 5 . . . 1 32 . . . . . . . 52 30 16 4 Lose Combat Pursuer 195 | . . 15 30 . . . . . . . . 45 . 15 . 90 . . . Influence Decreases 4337 | 45 127 59 439 242 . 75 86 307 390 147 . 668 75 14 110 674 467 220 192 Entered New Map 512 | . . 19 37 96 . . . . 56 23 . . 45 14 22 . 91 38 71 Time Decay 2826 | 45 117 40 342 146 . 65 76 267 294 124 . 378 30 . 66 424 286 85 41 Lost Part 602 | . 10 . 60 . . 10 10 40 40 . . 170 . . 22 110 30 20 80 Lost Ally 397 | . . . . . . . . . . . . 120 . . . 140 60 77 . Squads Dispatched 22 | . 2 . 1 . . . 4 3 . . . . . 2 5 2 . . 3 Investigation 9 | . . . 1 . . . 2 2 . . . . . . 2 2 . . . Extermination 2 | . . . . . . . . 1 . . . . . . 1 . . . . Reinforcement 11 | . 2 . . . . . 2 . . . . . . 2 2 . . . 3 Assault . | . . . . . . . . . . . . . . . . . . . . Garrison . | . . . . . . . . . . . . . . . . . . . . Intercept . | . . . . . . . . . . . . . . . . . . . . Searches Triggered . | . . . . . . . . . . . . . . . . . . . . Construction Impeded . | . . . . . . . . . . . . . . . . . . . . Haulers Reinforced . | . . . . . . . . . . . . . . . . . . . . Active Scanning Responses . | . . . . . . . . . . . . . . . . . . . . Cargo Convoy Interrupts . | . . . . . . . . . . . . . . . . . . . . Stealth | -11 -10 -10 -9 -9 -9 -8 -8 -7 -7 -7 -7 -6 -6 -6 -5 -5 -5 -5 -5 --------- Run | Yrd Mat Min Mat Min Exi Min Mat Fac Low Low Zio Pro Fac DSF Fac Ext Cet Arc Hub Distress Signals 8 | . . . . . . . 1 1 . . . 1 . . . 2 2 . 1 Communications Jammed . | . . . . . . . . . . . . . . . . . . . . Distress Signals . | . . . . . . . . . . . . . . . . . . . . Times Spotted 197 | . 12 2 21 2 . 3 6 14 16 1 . 37 . 7 3 39 10 13 11 Peak Tracking Total 11 | . 4 3 4 2 . 3 3 3 7 1 . 7 . 3 2 6 5 11 7 Tactical Retreats 10 | . . 1 1 . . . . . . . . 3 . 1 . 4 . . . Traps | -11 -10 -10 -9 -9 -9 -8 -8 -7 -7 -7 -7 -6 -6 -6 -5 -5 -5 -5 -5 ------- Run | Yrd Mat Min Mat Min Exi Min Mat Fac Low Low Zio Pro Fac DSF Fac Ext Cet Arc Hub Traps Triggered 11 | . 3 . . . . . . 2 . . . . . . 3 3 . . . Indirectly . | . . . . . . . . . . . . . . . . . . . . Trap Hack Attempts . | . . . . . . . . . . . . . . . . . . . . Triggered . | . . . . . . . . . . . . . . . . . . . . Disarmed . | . . . . . . . . . . . . . . . . . . . . Reprogrammed . | . . . . . . . . . . . . . . . . . . . . Reused . | . . . . . . . . . . . . . . . . . . . . Traps Extracted . | . . . . . . . . . . . . . . . . . . . . Installed . | . . . . . . . . . . . . . . . . . . . . Triggered . | . . . . . . . . . . . . . . . . . . . . Machines | -11 -10 -10 -9 -9 -9 -8 -8 -7 -7 -7 -7 -6 -6 -6 -5 -5 -5 -5 -5 ---------- Run | Yrd Mat Min Mat Min Exi Min Mat Fac Low Low Zio Pro Fac DSF Fac Ext Cet Arc Hub Machines Disabled 9 | . 1 . 1 . . . . 1 1 . . 2 . . . . 1 2 . Max in Single Turn 2 | . 1 . 1 . . . . 1 1 . . 2 . . . . . . . Machines Repaired . | . . . . . . . . . . . . . . . . . . . . Machines Dismantled . | . . . . . . . . . . . . . . . . . . . . Machines Sabotaged . | . . . . . . . . . . . . . . . . . . . . Overloaded Fab Kills . | . . . . . . . . . . . . . . . . . . . . Hacking | -11 -10 -10 -9 -9 -9 -8 -8 -7 -7 -7 -7 -6 -6 -6 -5 -5 -5 -5 -5 --------- Run | Yrd Mat Min Mat Min Exi Min Mat Fac Low Low Zio Pro Fac DSF Fac Ext Cet Arc Hub Machines Accessed 31 | . 2 . 8 . 1 . 3 6 1 . . 3 1 . . 3 2 1 . Terminals 17 | . 2 . 5 . . . 2 1 . . . 1 1 . . 3 2 . . Fabricators . | . . . . . . . . . . . . . . . . . . . . Repair Stations 2 | . . . . . . . . 1 . . . 1 . . . . . . . Recycling Units 4 | . . . 2 . . . 1 . . . . 1 . . . . . . . Scanalyzers 4 | . . . 1 . . . . 3 . . . . . . . . . . . Garrison Access 1 | . . . . . . . . 1 . . . . . . . . . . . Total Hacks 94 | . 5 . 23 . 4 . 6 17 12 . . 4 1 . . 3 2 17 . Successful 58 | . 3 . 4 . 4 . 1 8 12 . . 3 1 . . 3 2 17 . Failed 35 | . 2 . 19 . . . 5 8 . . . 1 . . . . . . . Catastrophic 9 | . 1 . 4 . . . 3 1 . . . . . . . . . . . Database Lockouts 1 | . . . . . . . . 1 . . . . . . . . . . . Manual 27 | . 1 . 7 . . . 4 3 . . 3 . . . . 9 . . . Terminals 33 | . 5 . 14 . . . 4 3 . . . 1 1 . . 3 2 . . Fabricators . | . . . . . . . . . . . . . . . . . . . . Repair Stations 5 | . . . . . . . . 3 . . . 2 . . . . . . . Recycling Units 8 | . . . 5 . . . 2 . . . . 1 . . . . . . . Scanalyzers 12 | . . . 4 . . . . 8 . . . . . . . . . . . Garrison Access 3 | . . . . . . . . 3 . . . . . . . . . . . Terminal Hacks 47 | . 3 . 2 . 4 . . 2 12 . . 1 1 . . 3 2 17 . Record 34 | . . . . . 4 . . . 12 . . . . . . . 1 17 . Prototype ID Bank 2 | . 1 . 1 . . . . . . . . . . . . . . . . Open Door 5 | . . . . . . . . . . . . 1 . . . 3 1 . . Open DSF 1 | . . . . . . . . . . . . . 1 . . . . . . Branch Access Points 1 | . . . . . . . . 1 . . . . . . . . . . . Hauler Manifests 1 | . 1 . . . . . . . . . . . . . . . . . . Registered Components 2 | . . . 1 . . . . 1 . . . . . . . . . . . Registered Prototypes 1 | . 1 . . . . . . . . . . . . . . . . . . Fabricator Hacks . | . . . . . . . . . . . . . . . . . . . . Repair Station Hacks 4 | . . . . . . . . 3 . . . 1 . . . . . . . Scan Component 3 | . . . . . . . . 2 . . . 1 . . . . . . . Repair 1 | . . . . . . . . 1 . . . . . . . . . . . Recycling Unit Hacks 3 | . . . 1 . . . 1 . . . . 1 . . . . . . . Retrieve Components 3 | . . . 1 . . . 1 . . . . 1 . . . . . . . Scanalyzer 4 | . . . 1 . . . . 3 . . . . . . . . . . . Insert Component 1 | . . . . . . . . 1 . . . . . . . . . . . Retrieve Study 3 | . . . 1 . . . . 2 . . . . . . . . . . . Garrison Access Hacks . | . . . . . . . . . . . . . . . . . . . . Unauthorized Hacks . | . . . . . . . . . . . . . . . . . . . . Terminals . | . . . . . . . . . . . . . . . . . . . . Fabricators . | . . . . . . . . . . . . . . . . . . . . Repair Stations . | . . . . . . . . . . . . . . . . . . . . Recycling Units . | . . . . . . . . . . . . . . . . . . . . Scanalyzers . | . . . . . . . . . . . . . . . . . . . . Garrison Access . | . . . . . . . . . . . . . . . . . . . . Data Cores Recovered 1 | . . . . . . . . 1 . . . . . . . . . . . Used . | . . . . . . . . . . . . . . . . . . . . Hacking Detections 19 | . 2 . 8 . . . 3 5 . . . 1 . . . . . . . Full Trace Events 4 | . . . 2 . . . 1 1 . . . . . . . . . . . Feedback Events . | . . . . . . . . . . . . . . . . . . . . Feedback Blocked . | . . . . . . . . . . . . . . . . . . . . Robot Schematics Acquired 3 | . . . . . . . . . . . 3 . . . . . . . . Robots Built . | . . . . . . . . . . . . . . . . . . . . Authchips . | . . . . . . . . . . . . . . . . . . . . Time . | . . . . . . . . . . . . . . . . . . . . Total Robot Build Rating . | . . . . . . . . . . . . . . . . . . . . Part Schematics Acquired 14 | . . . . . . . . . . . 14 . . . . . . . . Parts Built . | . . . . . . . . . . . . . . . . . . . . Authchips . | . . . . . . . . . . . . . . . . . . . . Time . | . . . . . . . . . . . . . . . . . . . . Total Part Build Rating . | . . . . . . . . . . . . . . . . . . . . Part Studies Acquired 3 | . . . 1 . . . . 2 . . . . . . . . . . . Parts Repaired 1 | . . . . . . . . 1 . . . . . . . . . . . Time 19 | . . . . . . . . 19 . . . . . . . . . . . Parts Recycled . | . . . . . . . . . . . . . . . . . . . . Recycled Matter . | . . . . . . . . . . . . . . . . . . . . Retrieved Matter . | . . . . . . . . . . . . . . . . . . . . Retrieved Components 4 | . . . 1 . . . 2 . . . . 1 . . . . . . . Parts Scanalyzed 1 | . . . . . . . . 1 . . . . . . . . . . . Part Schematics Acquired . | . . . . . . . . . . . . . . . . . . . . Parts Damaged . | . . . . . . . . . . . . . . . . . . . . Bothacking | -11 -10 -10 -9 -9 -9 -8 -8 -7 -7 -7 -7 -6 -6 -6 -5 -5 -5 -5 -5 ------------ Run | Yrd Mat Min Mat Min Exi Min Mat Fac Low Low Zio Pro Fac DSF Fac Ext Cet Arc Hub Used RIF Installer . | . . . . . . . . . . . . . . . . . . . . Robots Hacked . | . . . . . . . . . . . . . . . . . . . . Non-combat . | . . . . . . . . . . . . . . . . . . . . Combat . | . . . . . . . . . . . . . . . . . . . . Robot Hacks Applied . | . . . . . . . . . . . . . . . . . . . . Relay Couplers Released . | . . . . . . . . . . . . . . . . . . . . Fabnet Peak Effective % . | . . . . . . . . . . . . . . . . . . . . Robots Rewired 16 | . . . . . . . . . 2 . . 5 . . . 9 . . . Allies Hacked . | . . . . . . . . . . . . . . . . . . . . Hacks Repelled . | . . . . . . . . . . . . . . . . . . . . Allies | -11 -10 -10 -9 -9 -9 -8 -8 -7 -7 -7 -7 -6 -6 -6 -5 -5 -5 -5 -5 -------- Run | Yrd Mat Min Mat Min Exi Min Mat Fac Low Low Zio Pro Fac DSF Fac Ext Cet Arc Hub Total Allies 31 | . . . . . . . . . 2 . 4 6 . . . 19 . . . Largest Group 11 | . . . . . . . . . 2 2 6 11 . . . 10 10 5 . Highest-Rated Group 439 | . . . . . . . . . 62 62 215 357 . . . 439 355 193 . Highest-Rated Ally 85 | . . . . . . . . . 32 32 40 43 . . . 85 85 85 . Zionite Dispatches 3 | . . . . . . . . . . . . . . . . 3 . . . Heavy 1 | . . . . . . . . . . . . . . . . 1 . . . Light 1 | . . . . . . . . . . . . . . . . 1 . . . Hover Resupply 1 | . . . . . . . . . . . . . . . . 1 . . . Total Orders . | . . . . . . . . . . . . . . . . . . . . Ally Attacks 223 | . . . . . . . . . 4 . . 72 . . . 62 59 26 . Total Damage 5501 | . . . . . . . . . 75 . . 1832 . . . 1301 1516 777 . Kills 38 | . . . . . . . . . . . . 13 . . . 7 12 6 . Allies Corrupted . | . . . . . . . . . . . . . . . . . . . . Allies Melted 1 | . . . . . . . . . . . . 1 . . . . . . . Intel | -11 -10 -10 -9 -9 -9 -8 -8 -7 -7 -7 -7 -6 -6 -6 -5 -5 -5 -5 -5 ------- Run | Yrd Mat Min Mat Min Exi Min Mat Fac Low Low Zio Pro Fac DSF Fac Ext Cet Arc Hub Active Infowar (turns) 2809 | 263 521 95 233 . . . 123 242 . . . 423 61 198 621 29 . . . Sensors 982 | . . . . . . . 123 . . . . . 61 198 571 29 . . . Terrain 231 | 231 . . . . . . . . . . . . . . . . . . . Structural 1542 | . 430 95 233 . . . 119 242 . . . 423 . . . . . . . Seismic 123 | 32 91 . . . . . . . . . . . . . . . . . . Jamming 50 | . . . . . . . . . . . . . . . 50 . . . . Robot Analysis Total . | . . . . . . . . . . . . . . . . . . . . Derelict Logs Recovered 5 | . . . . 1 . . . . 2 1 1 . . . . . . . . Drone Launches . | . . . . . . . . . . . . . . . . . . . . Drone Recoveries . | . . . . . . . . . . . . . . . . . . . . Zionite Intel Received 1 | . . . . . . . . . . . . . . . . 1 . . . Prototype Stockpiles 1 | . . . . . . . . . . . . . . . . 1 . . . Exploration | -11 -10 -10 -9 -9 -9 -8 -8 -7 -7 -7 -7 -6 -6 -6 -5 -5 -5 -5 -5 ------------- Run | Yrd Mat Min Mat Min Exi Min Mat Fac Low Low Zio Pro Fac DSF Fac Ext Cet Arc Hub Turns Passed 10800 | 406 525 95 871 368 172 227 318 668 640 448 1389 1708 62 198 674 1073 627 197 134 Spaces Moved 6775 | 185 265 43 487 259 133 98 193 397 447 363 932 1114 50 150 449 630 429 115 36 Core 6 | 4 . . . . . . . . . . . 2 . . . . . . . Treads 1068 | 181 265 43 12 . . . . . . . . 318 . . . . 110 115 24 Legs 5701 | . . . 475 259 133 98 193 397 447 363 932 794 50 150 449 630 319 . 12 Wheels . | . . . . . . . . . . . . . . . . . . . . Hover . | . . . . . . . . . . . . . . . . . . . . Flight . | . . . . . . . . . . . . . . . . . . . . Fastest Speed 50 | 50 160 160 130 130 130 130 123 115 115 116 116 116 120 120 120 120 120 160 120 Average Speed 128 | 157 160 160 131 130 130 182 125 119 124 116 116 132 120 120 120 120 130 160 160 Slowest Speed 750 | 160 160 160 240 130 130 270 193 188 185 116 116 750 120 120 190 260 190 160 260 Overloaded Moves . | . . . . . . . . . . . . . . . . . . . . Propulsion Burnouts . | . . . . . . . . . . . . . . . . . . . . Robots Hopped . | . . . . . . . . . . . . . . . . . . . . Potential Cave-ins . | . . . . . . . . . . . . . . . . . . . . Cave-ins Triggered . | . . . . . . . . . . . . . . . . . . . . Exploration Rate (%) 47 | 9 47 9 49 58 50 22 19 12 66 55 89 82 2 96 12 74 95 96 3 Regions Visited 19 Branch Regions 12 Pre-discovered Areas 2 | . . . . . 1 . . . . . 1 . . . . . . . . Known Exits Taken 3 | . . . . . . . . 1 . . . . 1 . . 1 . . . Unknown Exits Taken 15 | 1 1 1 1 1 1 1 1 . 1 1 1 1 . . 1 . 1 1 . Scrap Searched 11 | . . . . 1 . . . . 2 3 3 2 . . . . . . . Spaces Dug 3 | . . . 1 . . . 1 1 . . . . . . . . . . . Terrain Destroyed 202 | . 23 . 4 . . . 1 28 87 . . 14 . . . 38 1 4 2 Melee 1 | . . . . . . . . 1 . . . . . . . . . . . Projectile 49 | . . . 1 . . . 1 1 2 . . . . . . 37 1 4 2 AOE 151 | . 23 . 3 . . . . 26 85 . . 14 . . . . . . . Terrain Rammed . | . . . . . . . . . . . . . . . . . . . . Walls Destroyed . | . . . . . . . . . . . . . . . . . . . . Machines Disabled . | . . . . . . . . . . . . . . . . . . . . Actions | -11 -10 -10 -9 -9 -9 -8 -8 -7 -7 -7 -7 -6 -6 -6 -5 -5 -5 -5 -5 --------- Run | Yrd Mat Min Mat Min Exi Min Mat Fac Low Low Zio Pro Fac DSF Fac Ext Cet Arc Hub Total 8157 | 235 316 58 613 268 132 119 240 537 494 377 1241 1272 52 170 555 796 488 118 76 Wait 575 | . 5 5 8 . . 4 8 67 2 4 304 45 . 1 65 22 32 . 3 Move 6756 | 184 264 42 486 258 132 97 192 396 446 362 931 1113 49 149 448 629 428 114 36 Hop . | . . . . . . . . . . . . . . . . . . . . Pick Up 99 | 7 10 3 16 . . 2 6 15 3 2 2 7 . 7 4 12 3 . . Fast Attach 93 | 9 1 . 11 . . 2 5 4 2 . 1 16 1 4 9 18 9 . 1 Attach 60 | . 1 . 9 . . . 6 7 3 . . 9 1 . 6 8 . . 10 Detach 25 | 2 1 . 3 . . . 4 3 . . . 2 . 1 3 5 . . 1 Swap 43 | 1 1 . 6 . . . 2 5 7 1 . 10 . 2 1 6 1 . . Drop 109 | 1 5 2 23 . . 2 6 11 1 1 3 17 1 6 5 14 11 . . Fire 348 | 31 27 6 50 10 . 12 11 28 21 7 . 38 . . 14 65 4 4 20 Melee 6 | . . . . . . . . 1 . . . . . . . . . . 5 Ram . | . . . . . . . . . . . . . . . . . . . . Kick 1 | . . . 1 . . . . . . . . . . . . . . . . Crush 1 | . 1 . . . . . . . . . . . . . . . . . . Escape Stasis . | . . . . . . . . . . . . . . . . . . . . Rewire 41 | . . . . . . . . . 9 . . 15 . . . 17 . . . Trap . | . . . . . . . . . . . . . . . . . . . . Miscellaneous . | . . . . . . . . . . . . . . . . . . . . Route ------- -11/Scrapyard -10/Materials (discovered 2 exits: *Mat / [*Min]) -10/Mines -9/Materials (discovered 3 exits: *Mat x2 / [*Min]) -9/Mines -9/Exiles -8/Mines -8/Materials -7/Factory (discovered 4 exits: Sto x2 / *Low x2) -7/Lower Caves -7/Lower Caves -7/Zion (discovered 2 exits: Dee / *Pro) -6/Proximity Caves -6/Factory (discovered 2 exits: Fac / DSF) -6/DSF -5/Factory -5/Extension (discovered 3 exits: *Fac x2 / *Cet) -5/Cetus (discovered 3 exits: *Fac x2 / *Arc) -5/Archives (discovered 3 exits: *Fac / [*Hub x2]) -5/Hub_04(d) History --------- Turn | Location | Event 14 | -11/Scrapyard | Discovered new exit (range 15) 407 | -11/Scrapyard | Entered Materials 408 | -10/Materials | Build established: Mutant 739 | -10/Materials | Discovered new exit (range 16) 916 | -10/Materials | Discovered new exit (range 9) 932 | -10/Materials | Entered Mines 1009 | -10/Mines | Discovered new exit (range 10) 1017 | -10/Mines | Received a Rocket Launcher from a helpful Derelict 1027 | -10/Mines | Entered Materials 1027 | -9/Materials | Evolved 2 slots: Utility x1, Weapon x1 1257 | -9/Materials | Discovered new exit (range 16) 1308 | -9/Materials | Lost 3 parts (2p1u) 1598 | -9/Materials | Build established: Gunner 1697 | -9/Materials | Discovered new exit (range 7) 1872 | -9/Materials | Discovered new exit (range 8) 1898 | -9/Materials | Entered Mines 1945 | -9/Mines | Learned Materials non-interactive machine intel 2247 | -9/Mines | Found a Scrap Suit stashed away for nefarious purposes 2260 | -9/Mines | Deemed a non-threat by the Exiles lab entrance 2261 | -9/Mines | Discovered new exit (range 5) 2266 | -9/Mines | Entered Exiles 2299 | -9/Exiles | Met 8R-AWN 2320 | -9/Exiles | Met EX-HEX 2374 | -9/Exiles | Met EX-DEC 2387 | -9/Exiles | Learned location of Zion (-7) 2424 | -9/Exiles | Discovered new exit (range 14) 2438 | -9/Exiles | Entered Mines 2651 | -8/Mines | Discovered new exit (range 8) 2665 | -8/Mines | Entered Materials 2665 | -8/Materials | Evolved 2 slots: Propulsion x1, Weapon x1 2666 | -8/Materials | Loaded intel: 46 non-interactive machine locations 2895 | -8/Materials | Discovered new exit (range 16) 2983 | -8/Materials | Entered Factory 2983 | -7/Factory | Evolved 2 slots: Propulsion x1, Utility x1 3022 | -7/Factory | Central database locked down 3252 | -7/Factory | Identified exit to Storage 3252 | -7/Factory | Identified exit to Lower Caves 3305 | -7/Factory | Repaired Carbon-fiber Leg 3651 | -7/Factory | Build established: Scavenger-Gunner 3651 | -7/Factory | Entered Lower Caves 3903 | -7/Lower Caves | Learned Factory terminal intel 4058 | -7/Lower Caves | Attracted the attention of an 0b10 outpost 4098 | -7/Lower Caves | Destroyed 7 combat bots 4106 | -7/Lower Caves | Lost 4 parts (1n3w) 4197 | -7/Lower Caves | Attracted the attention of an 0b10 checkpoint 4248 | -7/Lower Caves | Discovered new exit (range 12) 4277 | -7/Lower Caves | Learned location of 1 exit from Factory 4291 | -7/Lower Caves | Entered another Lower Caves area 4291 | -7/Lower Caves | Accompanied by 2 allies 4294 | -7/Lower Caves | Encountered a Warlord checkpoint 4317 | -7/Lower Caves | Learned 8 Factory zone layouts 4341 | -7/Lower Caves | Build established: Scavenger-Tank 4718 | -7/Lower Caves | Discovered new exit (range 16) 4739 | -7/Lower Caves | Entered Zion 4739 | -7/Zion | Accompanied by 2 allies 4828 | -7/Zion | Learned location of Warlord (-4) 4848 | -7/Zion | System corruption cleaned by Quarantine Array 4911 | -7/Zion | Found Prototype Hackware 4911 | -7/Zion | Identified Exp. Hacking Suite 4931 | -7/Zion | Discovered new exit (range 9) 5198 | -7/Zion | Build established: Scavenger-Gunner 5241 | -7/Zion | Received a hallucinogenic algorithm 5241 | -7/Zion | Ran a hallucination algorithm 5241 | -7/Zion | Ran a hallucination algorithm 5471 | -7/Zion | Met Imprinter 5497 | -7/Zion | Imprinted 5500 | -7/Zion | Declared Zion's savior 5591 | -7/Zion | Identified exit to Deep Caves 6128 | -7/Zion | Entered Proximity Caves 6128 | -6/Proximity Caves | Accompanied by 6 allies 6130 | -6/Proximity Caves | Greeted by an Infiltrator in a former 0b10 base 6223 | -6/Proximity Caves | Former 0b10 base attacked by MAIN.C 6528 | -6/Proximity Caves | 0b10 base defense nominally successful 6647 | -6/Proximity Caves | Build established: Commander-Gunner 6702 | -6/Proximity Caves | P-70 Sage assimilated allied Chaingunner 5a 6745 | -6/Proximity Caves | Lost 9 allies 6952 | -6/Proximity Caves | Spotted B-75 Beast 7072 | -6/Proximity Caves | Lost 7 parts (2p2n3w) 7336 | -6/Proximity Caves | Build established: Scavenger-Skirmisher 7376 | -6/Proximity Caves | Attracted the attention of an 0b10 base 7382 | -6/Proximity Caves | Core integrity fell below 50% 7407 | -6/Proximity Caves | Destroyed 7 combat bots 7415 | -6/Proximity Caves | Lost 3 parts (1n1u1w) 7689 | -6/Proximity Caves | Build established: Scavenger-Gunner 7713 | -6/Proximity Caves | Attracted the attention of an 0b10 checkpoint 7821 | -6/Proximity Caves | Discovered new exit (range 15) 7836 | -6/Proximity Caves | Entered Factory 7836 | -6/Factory | Evolved 2 slots: Utility x2 7837 | -6/Factory | Identified exit to Factory 7839 | -6/Factory | Loaded intel: 26 terminal locations 7859 | -6/Factory | Identified exit to DSF 7898 | -6/Factory | Entered DSF 7899 | -6/DSF | Joined Warlord attack on 0b10 via DSF 7920 | -6/DSF | Additional patrols routed to DSF 8022 | -6/DSF | Discovered exit to Factory (range 14) 8096 | -6/DSF | Entered Factory 8096 | -5/Factory | Evolved 2 slots: Utility x2 8405 | -5/Factory | Build established: Wizard-Skirmisher 8541 | -5/Factory | Lost 8 parts (1p4n3w) 8751 | -5/Factory | Discovered new exit (range 16) 8770 | -5/Factory | Entered Extension 8864 | -5/Extension | Destroyed 7 combat bots 9277 | -5/Extension | Spotted B-75 Beast 9313 | -5/Extension | Destroyed B-75 Beast 9321 | -5/Extension | Spotted B-75 Beast 9326 | -5/Extension | Lost 3 allies 9346 | -5/Extension | Destroyed B-75 Beast 9349 | -5/Extension | Build established: Wizard-Gunner 9360 | -5/Extension | Lost 5 parts (1p2n1u1w) 9452 | -5/Extension | Discovered new exit (range 3) 9510 | -5/Extension | Retrieved Zion intel report: Prototype Stockpiles 9511 | -5/Extension | Zion Light squad teleported in 9520 | -5/Extension | Rescued a captive Derelict 9520 | -5/Extension | Rescued a captive Derelict 9578 | -5/Extension | Rescued a captive Derelict 9579 | -5/Extension | Rescued a captive Derelict 9638 | -5/Extension | Zion Heavy squad teleported in 9675 | -5/Extension | Lost 3 allies 9706 | -5/Extension | Zion Hover Resupply teleported in 9795 | -5/Extension | Discovered new exit (range 10) 9796 | -5/Extension | Discovered new exit (range 6) 9808 | -5/Extension | Identified exit to Cetus 9811 | -5/Extension | Identified exit to Factory 9843 | -5/Extension | Entered Cetus 9843 | -5/Cetus | Accompanied by 10 allies 9859 | -5/Cetus | Spotted Cetus Guard 9859 | -5/Cetus | Spotted Cetus Guard 9862 | -5/Cetus | Spotted Cetus Guard 9862 | -5/Cetus | Spotted Cetus Guard 9863 | -5/Cetus | Allies destroyed Cetus Guard 9866 | -5/Cetus | Allies destroyed Cetus Guard 9869 | -5/Cetus | Allies destroyed Cetus Guard 9910 | -5/Cetus | Lost 3 parts (3w) 9942 | -5/Cetus | Discovered exit to Factory (range 15) 10178 | -5/Cetus | Build established: Wizard-Mutant 10188 | -5/Cetus | Discovered new exit (range 15) 10212 | -5/Cetus | Spotted Cetus Guard 10212 | -5/Cetus | Spotted Cetus Guard 10220 | -5/Cetus | Spotted Cetus Guard 10224 | -5/Cetus | Spotted Cetus Guard 10226 | -5/Cetus | Allies destroyed Cetus Guard 10229 | -5/Cetus | Allies destroyed Cetus Guard 10237 | -5/Cetus | Allies destroyed Cetus Guard 10245 | -5/Cetus | Allies destroyed Cetus Guard 10249 | -5/Cetus | Discovered exit to Factory (range 16) 10269 | -5/Cetus | Scared off Revision 17 10275 | -5/Cetus | Lost 3 allies 10470 | -5/Cetus | Entered Archives 10470 | -5/Archives | Accompanied by 5 allies 10502 | -5/Archives | Met Zhirov 10508 | -5/Archives | Reinforcements dispatched to Archives 10526 | -5/Archives | Read partially decrypted archive contents 10553 | -5/Archives | Reinforcements dispatched to Archives 10555 | -5/Archives | Zhirov warped through subspace 10561 | -5/Archives | Discovered new exit (range 15) 10568 | -5/Archives | Build established: Wizard-Tank 10573 | -5/Archives | Zhirov detonated Archives 10574 | -5/Archives | Core integrity fell below 50% 10590 | -5/Archives | Discovered exit to Factory (range 15) 10595 | -5/Archives | Lost 5 allies 10621 | -5/Archives | Discovered new exit (range 14) 10667 | -5/Archives | Entered Hub_04(d) 10749 | -5/Hub_04(d) | Core integrity fell below 20% 10801 | -5/Hub_04(d) | Destroyed by G-50 Soldier with Heavy Laser Last Messages --------------- 10794_ K-01 Serf collects debris. 10796_ Overheating: System interference. 10796_ Adv. Targeting Computer temporarily disabled. 10796_ Point Defense System destroyed. 10796_ K-01 Serf collects debris. 10797_ G-50 Soldier overheating. 10797_ K-01 Serf collects debris. 10797_ Flexi-carbon Leg destroyed. 10797_ Critical hit (Burn: +37). 10798_ G-50 Soldier heat damages Lgt. Angular Momentum Engine. 10798_ Acquired Gatling Laser. 10798_ G-50 Soldier overheating. 10800_ G-50 Soldier heat damages Lgt. Angular Momentum Engine, Carbon-fiber Leg, Hvy. Laser, Carbon-fiber Leg. 10800_ K-01 Serf collects debris. 10801_ G-50 Soldier overheating. 10801_ W-25 Informer sends out distress signal. Map ----- +----------------------------------------------------+ | ?????????????????????????????????????? | | ?????????????????????????????????????? | | ?????????????????????????????????????? | | ?????????????????????????????????????? | | ?????????????????????????????????????? | | ?????????????????????????????????????? | | ?????????????????????????????????????? | | ?????????????????????????????????????? | | ?????????????????????????????????????? | | ?????????????????????????????????????? | | ?????????????????????????????????????? | | ?????????????????????????????????????? | | ?????????????????????????????????????? | | ?????????????????????????????????????? | | ?????????????????????????????????????? | | ?????????????????????????????????????? | | ?????????????????????????????????????? | | ?????????????????????????????????????? | | ?????????????????????????????????????? | | ?????????????????????????????????????? | | ?????????????????????????????????????? | | ?????????????????????????????????????? | | ?????????????????????????????????????? | | ??########?###?##????? ##????????????? | | ??## u########## #????????????? | | ???# %g% @ !u!o! ????????? | | ???# " g =kg!gk ????????? | | ???# g !%g[g Rw ????????? | | ???# ##########!!u ####?????????? | | ???## ##???????????/###????????????? | | ????# #????????????????????????????? | | ????# #????????????????????????????? | | ????# #????????????????????????????? | | ????# #????????????????????????????? | | ????# #????????????????????????????? | | ????# #????????????????????????????? | | ????# #????????????????????????????? | | ????# #????????????????????????????? | | ????# #????????????????????????????? | | ????# #????????????????????????????? | | ????# #????????????????????????????? | | ????# #????????????????????????????? | | ????# #????????????????????????????? | | ????# #????????????????????????????? | | ????# #????????????????????????????? | | ????# #????????????????????????????? | | ????# #????????????????????????????? | | ????# #????????????????????????????? | | ????# #????????????????????????????? | | ????#####????????????????????????????? | +----------------------------------------------------+ Best States ------------- Heat Dissipation 59 Energy Generation 35 Energy Capacity 350 Matter Stores 300 Matter Capacity 400 Sight Range 16 Robot Scan Range 15 Terrain Scan Range 16 Terrain Scan Density 10 Jamming Range 14 Armor Coverage 900 Point Defense Rating 80 Weapon Cycling 20 Evasion (%) 55 Targeting Accuracy 10 Recoil Reduction 4 Matter Filtering 30 Offensive Hacking 74 Item Schematics ----------------- Imp. Hacking Suite | -7/Zion | Archive Imp. Shield Generator | -7/Zion | Archive Nuclear Pulse Thruster | -7/Zion | Archive Recalibrator | -7/Zion | Archive Thermic Laser | -7/Zion | Archive Imp. Deuterium Engine | -7/Zion | Archive Cloaking Device | -7/Zion | Archive Coolant Injector | -7/Zion | Archive Imp. Focal Shield | -7/Zion | Archive Imp. Thermal Shield | -7/Zion | Archive Arm. Huge Wheel | -7/Zion | Archive Phase Shifter | -7/Zion | Archive Adv. Signal Interpreter | -7/Zion | Archive Med. Reflective Plating | -7/Zion | Archive Robot Schematics ------------------ R-06 Scavenger | -7/Zion | Archive M-14 Sweeper | -7/Zion | Archive Y-54 Guardian | -7/Zion | Archive Fabricated ------------ Nothing Repaired ---------- Carbon-fiber Leg | 14% | -7/Factory Studied --------- Hvy. Assault Rifle | -9/Materials | Hacked Gauss Rifle | -7/Factory | Hacked Aluminum Leg | -7/Factory | Hacked Alien Tech Used ----------------- None Achievements -------------- Revising The Future Challenges ------------ None Game ------ Seed HypervelocityCoolantSabre Manual? 0 Play Time 02:44:20 Cumulative 77.4 hours Start 2026.09.05 @ 19:45:56 End 2026.09.05 @ 22:40:53 Sessions 1 Manual Loads 0 Difficulty Rogue Special Mode None Game No. 128 Rogue 128 Adventurer 0 Explorer 0 Win Type - Total 1 Types 1/0/0/0/0/0/0/0/0/0 Lore% 46 Gallery% 42 Achievement% 31 Wizard Run 0 Options --------- Layout 1 ASCII 1 Keyboard 1 Movement Numpad Keybinds 0 Fullscreen 2 Font 24/Smallcaps Map View 50x35 Zoom Use 0% Tactical HUD 1 Map Filters NONE Filters NONE Steam 1 RUN: 33c0cd11-eba4-405c-9350-4bbc7465681a